bitfinex-derivatives/quotes_BTCF0:USTF0_20251028
["timestamp","ask_amount","ask_price","bid_price","bid_amount"]
[1761684237924,0.24681,112900.0,112890.0,0.50248]
[1761684238231,0.24681,112900.0,112890.0,0.3648]
[1761684238533,0.42341247,112900.0,112890.0,0.3648]
[1761684238733,0.24681,112900.0,112890.0,0.50248]
[1761684239635,0.24681,112900.0,112890.0,0.67608247]
[1761684240037,0.24681,112900.0,112890.0,0.49948]
[1761684240225,0.24681,112900.0,112890.0,0.67608247]
[1761684241237,0.24681,112900.0,112890.0,0.49948]
[1761684241436,0.24681,112900.0,112890.0,0.67608247]
[1761684243021,0.04265,112900.0,112890.0,0.82836296]
[1761684243230,0.10722,112900.0,112890.0,0.82836296]
[1761684243424,0.10722,112900.0,112890.0,0.8401623]
[1761684243624,0.16761,112900.0,112890.0,0.8401623]
[1761684244536,0.16761,112900.0,112890.0,0.73977976]
[1761684245739,0.24681,112900.0,112890.0,0.60209976]
[1761684245948,0.24681,112900.0,112890.0,0.67604247]
[1761684246440,0.16761,112900.0,112890.0,0.82832286]
[1761684246634,0.16761,112900.0,112890.0,0.69068286]
[1761684246836,0.16761,112900.0,112890.0,0.82832286]
[1761684247841,0.16761,112900.0,112890.0,0.82828221]
[1761684248044,0.16761,112900.0,112890.0,0.65172039]
[1761684248245,0.16761,112900.0,112890.0,0.82828221]
[1761684248441,0.16761,112900.0,112890.0,1.00484403]
[1761684248636,0.24681,112900.0,112890.0,1.00484403]
[1761684249542,0.24681,112900.0,112890.0,0.94114674]
[1761684250441,0.24681,112900.0,112890.0,0.49944]
[1761684250740,0.24681,112900.0,112890.0,0.67600182]
[1761684252044,0.24681,112900.0,112890.0,0.67596182]
[1761684252549,0.24681,112900.0,112890.0,0.62694502]
[1761684252847,0.42337182,112900.0,112890.0,0.3618]
[1761684253345,0.42337182,112900.0,112890.0,0.53836182]
[1761684253947,0.42337182,112900.0,112890.0,0.3618]
[1761684254144,0.74013364,112900.0,112890.0,0.3618]
[1761684254346,0.74013364,112900.0,112890.0,0.001]
[1761684255552,0.14892,112880.0,112870.0,0.42449729]
[1761684255847,0.40468182,112880.0,112870.0,0.42449729]
[1761684256238,0.22812,112880.0,112870.0,0.60105911]
[1761684257148,0.40468182,112880.0,112870.0,0.60105911]
[1761684257348,0.40468182,112880.0,112870.0,0.60205911]
[1761684259552,0.22812,112880.0,112870.0,0.60205911]
[1761684260152,0.22812,112880.0,112870.0,0.77862093]
[1761684260343,0.22812,112880.0,112870.0,0.42549729]
[1761684260543,0.22812,112880.0,112870.0,0.60205911]
[1761684261447,0.22812,112880.0,112870.0,0.73961911]
[1761684261857,0.22812,112880.0,112870.0,0.56301729]
[1761684262152,0.22812,112880.0,112870.0,0.73957911]
[1761684263255,0.22812,112880.0,112870.0,0.56301729]
[1761684263554,0.22812,112880.0,112870.0,0.73957911]
[1761684263757,0.22812,112880.0,112870.0,0.42549729]
[1761684263758,0.40468182,112880.0,112870.0,0.42549729]
[1761684264052,0.40468182,112880.0,112870.0,0.60205911]
[1761684264650,0.40468182,112880.0,112870.0,0.42549729]
[1761684264854,0.40468182,112880.0,112870.0,0.60205911]
[1761684265044,0.22812,112880.0,112870.0,0.60205911]
[1761684265549,0.14892,112880.0,112870.0,0.60205911]
[1761684265752,0.22812,112880.0,112870.0,0.60205911]
[1761684266257,0.22812,112880.0,112870.0,0.53736182]
[1761684266554,0.40468182,112880.0,112870.0,0.53736182]
[1761684266752,0.40468182,112880.0,112870.0,0.3608]
[1761684266954,0.40468182,112880.0,112870.0,0.53736182]
[1761684267354,0.40468182,112880.0,112870.0,0.3608]
[1761684267555,0.54220182,112880.0,112870.0,0.53736182]
[1761684267856,0.40468182,112880.0,112870.0,0.53736182]
[1761684268246,0.54220182,112880.0,112870.0,0.53736182]
[1761684268558,0.54220182,112880.0,112870.0,0.3608]
[1761684268753,0.71876364,112880.0,112870.0,0.3608]
[1761684268950,0.14892,112870.0,112860.0,0.42449729]
[1761684269151,0.40468182,112870.0,112860.0,0.06369729]
[1761684269350,0.40468182,112870.0,112860.0,0.24025911]
[1761684269554,0.22812,112870.0,112860.0,0.60105911]
[1761684269749,0.40468182,112870.0,112860.0,0.42449729]
[1761684269952,0.22812,112870.0,112860.0,0.60105911]
[1761684270151,0.40468182,112870.0,112860.0,0.60205911]
[1761684270456,0.22812,112870.0,112860.0,0.60205911]
[1761684271250,0.22812,112870.0,112860.0,0.77862093]
[1761684272150,0.22812,112870.0,112860.0,0.60205911]
[1761684272354,0.22812,112870.0,112860.0,0.77862093]
[1761684272558,0.22812,112870.0,112860.0,0.77858103]
[1761684272758,0.22812,112870.0,112860.0,0.71492364]
[1761684273151,0.22812,112870.0,112860.0,0.79448076]
[1761684273350,0.22812,112870.0,112860.0,0.88308756]
[1761684273751,0.09193,112870.0,112860.0,1.05964938]
[1761684274050,0.14539,112870.0,112860.0,0.88308756]
[1761684275557,0.14539,112870.0,112860.0,0.79448076]
[1761684276261,0.14539,112870.0,112860.0,0.88308756]
[1761684279058,0.22459,112870.0,112860.0,0.88308756]
[1761684279459,0.22459,112870.0,112860.0,0.80353044]
[1761684280564,0.22459,112870.0,112860.0,0.3618]
[1761684280765,0.22459,112870.0,112860.0,0.71492364]
[1761684280962,0.22459,112870.0,112860.0,0.42551627]
[1761684281154,0.22459,112870.0,112860.0,0.73951809]
[1761684281364,0.22459,112870.0,112860.0,0.61791894]
[1761684281561,0.40115182,112870.0,112860.0,0.75535894]
[1761684281961,0.40115182,112870.0,112860.0,0.61791894]
[1761684282164,0.40115182,112870.0,112860.0,0.44135712]
[1761684282361,0.40115182,112870.0,112860.0,0.60209352]
[1761684282564,0.54119182,112870.0,112860.0,0.4255317]
[1761684282763,0.53855182,112870.0,112860.0,0.4255317]
[1761684283071,0.53855182,112870.0,112860.0,0.0647317]
[1761684283264,0.71775364,112870.0,112860.0,0.0647317]
[1761684283459,1.07855364,112870.0,112860.0,0.0647317]
[1761684283661,0.90199182,112870.0,112860.0,0.0647317]
[1761684283967,0.13472,112850.0,112840.0,0.3463317]
[1761684284267,0.44868182,112850.0,112840.0,0.3463317]
[1761684286273,0.44868182,112850.0,112830.0,0.61700852]
[1761684286274,0.13472,112840.0,112830.0,0.61700852]
[1761684288163,0.31128182,112840.0,112830.0,0.61700852]
[1761684288763,0.31128182,112840.0,112830.0,0.5374514]
[1761684288964,0.13472,112840.0,112830.0,0.5374514]
[1761684289263,0.31128182,112840.0,112830.0,0.5374514]
[1761684289967,0.31128182,112840.0,112830.0,0.36088958]
[1761684290170,0.48784364,112840.0,112830.0,0.36088958]
[1761684290472,0.29687567,112840.0,112830.0,0.4404467]
[1761684291870,0.47343749,112840.0,112830.0,0.4404467]
[1761684292075,0.29687567,112840.0,112830.0,0.4404467]
[1761684293071,0.29687567,112840.0,112830.0,0.36088958]
[1761684296281,0.47343749,112840.0,112830.0,8.958e-05]
[1761684297676,0.83423749,112840.0,112830.0,8.958e-05]
[1761684299379,1.01353007,112840.0,112820.0,0.3608]
[1761684299574,1.01353007,112840.0,112800.0,0.3608]
[1761684299575,0.13472,112810.0,112800.0,0.3608]
[1761684299774,0.44860182,112810.0,112800.0,0.3608]
[1761684300072,0.13472,112790.0,112780.0,0.3608]
[1761684300273,0.44860182,112790.0,112780.0,0.3608]
[1761684300478,0.44866694,112790.0,112780.0,0.3608]
[1761684301086,0.28311631,112790.0,112780.0,0.3608]
[1761684301382,0.45967813,112790.0,112780.0,0.3608]
[1761684302479,0.63623995,112790.0,112780.0,0.002]
[1761684303081,0.13472,112770.0,112760.0,0.3608]
[1761684303272,0.44860182,112770.0,112760.0,0.3608]
[1761684303685,0.12692,112760.0,112750.0,0.3608]
[1761684303897,0.40360295,112760.0,112750.0,0.3608]
[1761684304276,0.12692,112760.0,112750.0,0.3608]
[1761684304579,0.40360295,112760.0,112750.0,0.3608]
[1761684304974,0.12306,112750.0,112740.0,0.3608]
[1761684305174,0.53706295,112750.0,112740.0,0.3608]
[1761684305488,0.53716754,112750.0,112740.0,0.3608]
[1761684305681,0.26048459,112750.0,112740.0,0.3608]
[1761684305986,0.53716754,112750.0,112740.0,0.3608]
[1761684306181,0.53716754,112750.0,112730.0,0.36090833]
[1761684306182,0.04823,112740.0,112730.0,0.36090833]
[1761684306484,0.12306,112740.0,112730.0,0.36090833]
[1761684306885,0.12306,112740.0,112730.0,0.00010833]
[1761684306886,0.39974295,112740.0,112730.0,0.00010833]
[1761684307092,0.40218724,112740.0,112730.0,0.01308457]
[1761684307581,0.76566724,112740.0,112730.0,0.00010833]
[1761684307786,0.12306,112720.0,112710.0,0.3608]
[1761684308082,0.26038,112720.0,112710.0,0.3608]
[1761684308280,0.63166106,112720.0,112710.0,0.3608]
[1761684308682,0.12491,112710.0,112700.0,0.3608]
[1761684309279,0.1255,112700.0,112690.0,0.3608]
[1761684309486,0.26282,112700.0,112690.0,0.3608]
[1761684310479,0.26282,112700.0,112690.0,0.96082146]
[1761684310480,0.02837,112700.0,112690.0,0.96082146]
[1761684310879,0.02337,112700.0,112690.0,0.96082146]
[1761684311075,0.02837,112710.0,112700.0,0.0887325]
[1761684311280,0.07719,112710.0,112700.0,0.82349356]
[1761684311476,0.1255,112710.0,112700.0,1.8608]
[1761684311686,0.1255,112710.0,112700.0,0.3608]
[1761684312184,0.26282,112710.0,112700.0,0.3608]
[1761684315092,0.1255,112710.0,112700.0,0.3608]
[1761684315287,0.02837,112710.0,112700.0,0.95813356]
[1761684315593,0.1255,112710.0,112700.0,0.86940106]
[1761684315895,0.02837,112710.0,112700.0,0.95813366]
[1761684317492,6.951e-05,112720.0,112710.0,0.0887247]
[1761684317687,0.02837,112740.0,112730.0,0.088709]
[1761684317883,0.1255,112740.0,112730.0,1.23020106]
[1761684318193,0.1255,112740.0,112730.0,0.85892]
[1761684318390,0.1255,112740.0,112730.0,1.45892]
[1761684318595,0.12556999,112740.0,112730.0,0.85892]
[1761684318992,0.12556999,112740.0,112730.0,0.7216]
[1761684326996,0.02843999,112740.0,112730.0,1.18159016]
[1761684327292,6.999e-05,112740.0,112730.0,1.78427016]
[1761684327596,6.999e-05,112740.0,112730.0,1.18427016]
[1761684327796,0.1255,112760.0,112740.0,0.0886987]
[1761684327997,0.1255,112760.0,112750.0,0.85888]
[1761684328497,0.07719,112760.0,112750.0,0.85888]
[1761684328693,0.12557342,112760.0,112750.0,0.85888]
[1761684329286,0.02844342,112760.0,112750.0,0.85888]
[1761684329503,0.12557342,112760.0,112750.0,0.85888]
[1761684335498,0.49685448,112760.0,112750.0,0.7216]
[1761684335699,0.02603,112720.0,112710.0,0.09932775]
[1761684335889,0.02610342,112720.0,112710.0,0.23652775]
[1761684336088,0.02610342,112720.0,112710.0,0.95812775]
[1761684336295,0.06850342,112720.0,112710.0,0.86940305]
[1761684336706,0.02610342,112720.0,112710.0,1.32940891]
[1761684337006,0.02610342,112720.0,112710.0,1.33208891]
[1761684337210,0.02610342,112720.0,112710.0,1.32940891]
[1761684337713,0.01168479,112720.0,112710.0,1.32940891]
[1761684338404,0.05408479,112720.0,112710.0,0.86940305]
[1761684338601,0.01168479,112720.0,112710.0,0.95812785]
[1761684338905,0.01168479,112720.0,112710.0,1.32940891]
[1761684341706,0.09570479,112720.0,112710.0,0.73220305]
[1761684341910,0.09570479,112720.0,112710.0,0.7216]
[1761684342205,0.09570479,112720.0,112710.0,0.86964002]
[1761684342415,0.07551697,112720.0,112710.0,0.86964002]
[1761684342709,0.10154697,112720.0,112710.0,0.86964002]
[1761684343006,0.10154697,112720.0,112710.0,0.73248002]
[1761684343208,0.10154697,112720.0,112710.0,0.86964002]
[1761684343407,0.10154697,112720.0,112710.0,0.85876]
[1761684344800,0.10154697,112720.0,112710.0,0.7216]
[1761684345202,0.10154697,112720.0,112710.0,0.85876]
[1761684346102,0.10154697,112720.0,112710.0,0.7216]
[1761684346411,0.10154697,112720.0,112710.0,0.85876]
[1761684347014,0.10154697,112720.0,112710.0,0.85872]
[1761684347205,0.10154697,112720.0,112710.0,0.85876]
[1761684347513,0.10154697,112720.0,112710.0,0.7216]
[1761684347708,0.08712559,112720.0,112710.0,0.85872]
[1761684348612,0.46108665,112720.0,112710.0,0.7216]
[1761684348809,0.45840665,112720.0,112710.0,0.7216]
[1761684349008,0.46108665,112720.0,112710.0,0.7216]
[1761684349615,0.45840665,112720.0,112710.0,0.7216]
[1761684350004,0.08712559,112720.0,112710.0,0.7216]
[1761684352218,0.08712559,112720.0,112710.0,0.85872]
[1761684352816,0.08712559,112720.0,112710.0,0.7216]
[1761684353017,0.08712559,112720.0,112710.0,0.85872]
[1761684354815,0.08712559,112720.0,112710.0,0.7216]
[1761684355019,0.08712559,112720.0,112710.0,0.3608]
[1761684356608,0.02603,112730.0,112710.0,1.09288106]
[1761684356819,0.02603,112730.0,112720.0,0.49792]
[1761684357010,0.11005,112730.0,112720.0,0.49792]
[1761684360028,0.02603,112730.0,112720.0,0.49792]
[1761684360321,0.11005,112730.0,112720.0,0.49788]
[1761684360521,0.11005,112730.0,112720.0,0.3608]
[1761684360912,0.48133106,112730.0,112720.0,0.3608]
[1761684361518,0.11005,112720.0,112710.0,0.3608]
[1761684363529,0.48133106,112720.0,112710.0,0.3608]
[1761684363724,0.1056,112710.0,112700.0,0.3608]
[1761684365227,0.47688106,112710.0,112700.0,0.3608]
[1761684365617,0.47956106,112710.0,112700.0,0.3608]
[1761684366419,0.07815,112700.0,112690.0,0.3608]
[1761684366626,0.21519,112700.0,112690.0,0.3608]
[1761684367028,0.58647106,112700.0,112690.0,0.3608]
[1761684367833,0.49219282,112700.0,112690.0,0.3608]
[1761684368030,0.07815,112690.0,112680.0,0.3608]
[1761684368731,0.35515282,112690.0,112680.0,0.3608]
[1761684368923,0.37880282,112690.0,112680.0,0.3608]
[1761684369321,0.10515,112680.0,112670.0,0.36229428]
[1761684369623,0.51919282,112680.0,112670.0,0.00149428]
[1761684370423,0.10515,112680.0,112670.0,0.36229428]
[1761684370625,0.02365,112680.0,112670.0,0.49933428]
[1761684370825,0.10515,112680.0,112670.0,0.49933428]
[1761684371117,0.0658,112680.0,112670.0,0.49933428]
[1761684371323,0.10515,112680.0,112670.0,0.49933428]
[1761684372226,0.10515,112680.0,112670.0,0.13853428]
[1761684374236,0.10515,112680.0,112670.0,0.49933428]
[1761684374435,0.02365,112680.0,112670.0,0.7763371]
[1761684374935,0.0658,112680.0,112670.0,0.49933428]
[1761684375137,0.10515,112680.0,112670.0,0.49933428]
[1761684375640,0.0658,112680.0,112670.0,0.49933428]
[1761684375833,0.10515,112680.0,112670.0,0.49933428]
[1761684376333,0.02365,112680.0,112670.0,0.8650932]
[1761684376536,0.02365,112690.0,112680.0,0.0887482]
[1761684376833,0.10515,112700.0,112680.0,0.63780282]
[1761684377033,0.10515,112700.0,112690.0,0.4978]
[1761684378137,0.10515,112700.0,112690.0,0.77480282]
[1761684378333,0.02365,112700.0,112690.0,0.86354312]
[1761684378723,0.02365,112700.0,112690.0,0.86622312]
[1761684380537,0.02365,112700.0,112690.0,0.87667668]
[1761684381631,0.02365,112700.0,112690.0,1.47667668]
[1761684381837,0.02431,112710.0,112690.0,1.47399668]
[1761684382039,0.10581,112710.0,112700.0,0.3608]
[1761684385337,0.10581,112710.0,112700.0,0.49776]
[1761684386347,0.10581,112710.0,112700.0,0.3608]
[1761684386538,0.10581,112710.0,112700.0,0.49776]
[1761684388437,0.10581,112710.0,112700.0,0.5864928]
[1761684388638,0.10581,112710.0,112700.0,0.86349562]
[1761684388840,0.02431,112710.0,112700.0,0.86349562]
[1761684389039,0.10581,112710.0,112700.0,0.86349562]
[1761684389940,0.10581,112710.0,112700.0,0.77476282]
[1761684390841,0.10581,112710.0,112700.0,0.86349572]
[1761684391040,0.02431,112710.0,112700.0,0.86617572]
[1761684391246,0.02365,112720.0,112700.0,0.86617092]
[1761684391544,0.0658,112720.0,112710.0,0.63780282]
[1761684391736,0.10515,112720.0,112710.0,0.3608]
[1761684393233,0.10515,112720.0,112710.0,0.63780282]
[1761684394143,0.10515,112720.0,112710.0,0.3608]
[1761684406556,0.10515,112720.0,112710.0,0.63780282]
[1761684406760,0.10515,112720.0,112710.0,0.3608]
[1761684411679,0.38483282,112720.0,112710.0,0.3608]
[1761684412185,0.38215282,112720.0,112710.0,0.3608]
[1761684412575,0.0938,112710.0,112700.0,0.3608]
[1761684413172,0.23056,112710.0,112700.0,0.3608]
[1761684413677,0.50756282,112710.0,112700.0,0.3608]
[1761684413882,0.0938,112700.0,112690.0,0.3608]
[1761684415473,0.0938,112700.0,112690.0,0.63780282]
[1761684415674,0.02164,112710.0,112690.0,0.80878104]
[1761684415872,0.0938,112710.0,112700.0,0.77456282]
[1761684416072,0.0938,112710.0,112700.0,0.49756]
[1761684416273,0.0938,112710.0,112700.0,0.3608]
[1761684416464,0.0938,112710.0,112700.0,0.49756]
[1761684417572,0.0938,112710.0,112700.0,0.77456282]
[1761684420171,0.0938,112710.0,112700.0,0.49756]
[1761684420578,0.0938,112710.0,112700.0,0.77456282]
[1761684420774,0.0938,112710.0,112700.0,0.3608]
[1761684421373,0.0938,112700.0,112690.0,0.77452282]
[1761684421673,0.0938,112700.0,112690.0,0.49752]
[1761684421880,0.0938,112700.0,112690.0,0.3608]
[1761684422080,0.0938,112700.0,112690.0,0.49752]
[1761684422273,0.0938,112700.0,112690.0,0.3608]
[1761684422976,0.0938,112700.0,112690.0,0.63780282]
[1761684423177,0.02164,112700.0,112690.0,0.36348]
[1761684423378,0.0938,112700.0,112690.0,0.3608]
[1761684423678,0.0938,112700.0,112690.0,0.49748]
[1761684423877,0.0938,112700.0,112690.0,0.3608]
[1761684424385,0.37080282,112700.0,112690.0,0.3608]
[1761684424780,0.09156,112690.0,112680.0,0.49748]
[1761684426183,0.09156,112690.0,112680.0,0.3608]
[1761684427982,0.09156,112690.0,112680.0,0.49748]
[1761684429285,0.09156,112690.0,112680.0,0.3608]
[1761684430788,0.10206209,112690.0,112680.0,0.3608]
[1761684431287,0.09156,112690.0,112680.0,0.53806442]
[1761684431580,0.02164,112700.0,112680.0,0.80675784]
[1761684431787,0.02164,112700.0,112690.0,0.86861896]
[1761684432085,0.02164,112700.0,112690.0,0.96004006]
[1761684432486,0.02164,112700.0,112690.0,0.95736006]
[1761684433280,0.02164,112710.0,112690.0,0.96004006]
[1761684433490,0.02164,112710.0,112700.0,0.82339226]
[1761684434079,0.02365,112720.0,112700.0,0.82339226]
[1761684434287,0.02365,112720.0,112710.0,0.49744]
[1761684434690,0.02365,112720.0,112710.0,0.86861896]
[1761684435188,0.09139,112720.0,112710.0,0.49744]
[1761684435589,0.05836,112720.0,112710.0,0.49744]
[1761684435780,0.09139,112720.0,112710.0,0.3608]
[1761684435979,0.09139,112720.0,112710.0,0.49744]
[1761684436176,0.09139,112720.0,112710.0,0.3608]
[1761684436393,0.09139,112720.0,112710.0,0.49744]
[1761684436587,0.09139,112720.0,112710.0,0.3608]
[1761684437088,0.46524896,112720.0,112710.0,0.3608]
[1761684437287,0.06774,112710.0,112700.0,0.3608]
[1761684438090,0.06774,112700.0,112690.0,0.3608]
[1761684439994,0.06774,112710.0,112690.0,0.73197896]
[1761684440283,0.06774,112710.0,112700.0,0.4974]
[1761684440687,0.06774,112710.0,112700.0,0.3608]
[1761684443190,0.09139,112720.0,112700.0,0.73197896]
[1761684443489,0.02365,112720.0,112710.0,0.5861256]
[1761684443694,0.02365,112720.0,112710.0,0.87125896]
[1761684443991,0.02365,112720.0,112710.0,0.95730456]
[1761684444182,0.02365,112720.0,112710.0,0.86857896]
[1761684444594,0.02365,112720.0,112710.0,0.4974]
[1761684444792,0.09139,112720.0,112710.0,0.3608]
[1761684445189,0.09139,112720.0,112710.0,0.49736]
[1761684446788,0.09139,112720.0,112710.0,0.3608]
[1761684446995,0.09139,112720.0,112710.0,0.49736]
[1761684451883,0.10186869,112720.0,112710.0,0.49736]
[1761684452392,0.10186869,112720.0,112710.0,0.3608]
[1761684452593,0.10186869,112720.0,112710.0,0.49732]
[1761684453997,0.10186869,112720.0,112710.0,0.3608]
[1761684454197,0.08418,112710.0,112700.0,0.3608]
[1761684455198,0.0789,112700.0,112690.0,0.3608]
[1761684455497,0.45007896,112700.0,112690.0,0.3608]
[1761684455697,0.0789,112700.0,112690.0,0.3608]
[1761684462701,0.21538,112700.0,112690.0,0.3608]
[1761684468009,0.0789,112700.0,112690.0,0.49724]
[1761684474506,0.1119,112700.0,112690.0,0.49824]
[1761684476600,0.1119,112700.0,112690.0,0.3618]
[1761684476804,0.1119,112700.0,112690.0,0.4982]
[1761684477905,0.1119,112700.0,112690.0,0.3618]
[1761684478111,0.1119,112700.0,112690.0,0.4982]
[1761684478812,0.033,112700.0,112690.0,0.87225517]
[1761684479010,0.05141,112700.0,112690.0,0.57775712]
[1761684479309,0.1119,112700.0,112690.0,0.3618]
[1761684479614,0.1119,112700.0,112690.0,0.4982]
[1761684479818,0.1119,112700.0,112690.0,0.3618]
[1761684480112,0.1119,112700.0,112690.0,0.4982]
[1761684480613,0.1119,112700.0,112690.0,0.49816]
[1761684483109,0.1119,112700.0,112690.0,0.3618]
[1761684483303,0.1119,112700.0,112690.0,0.49816]
[1761684485315,0.1119,112700.0,112690.0,0.3618]
[1761684485515,0.1119,112700.0,112690.0,0.49816]
[1761684486609,0.1119,112700.0,112690.0,0.49812]
[1761684487527,0.01939,112730.0,112720.0,0.0887171]
[1761684487818,0.0161,112740.0,112730.0,0.0887092]
[1761684488012,0.0161,112740.0,112730.0,0.46276437]
[1761684488205,0.0161,112740.0,112730.0,1.40024149]
[1761684488406,0.0161,112740.0,112730.0,1.32068437]
[1761684488610,0.0161,112740.0,112730.0,1.40024149]
[1761684488805,0.0161,112740.0,112730.0,1.4101291]
[1761684489007,0.0161,112740.0,112730.0,1.03875393]
[1761684489216,0.0491,112740.0,112730.0,1.2748091]
[1761684489414,0.10553,112740.0,112730.0,0.85892]
[1761684490216,0.10553,112740.0,112730.0,0.7226]
[1761684490424,0.10553,112740.0,112730.0,0.85892]
[1761684491311,0.10553,112740.0,112730.0,0.7226]
[1761684491511,0.10553,112740.0,112730.0,0.85888]
[1761684496309,0.10553,112740.0,112730.0,0.7226]
[1761684496513,0.10553,112740.0,112730.0,0.85888]
[1761684499315,0.10553,112740.0,112730.0,0.7226]
[1761684499617,0.10553,112740.0,112730.0,0.85884]
[1761684500318,0.10553,112740.0,112730.0,0.7226]
[1761684500524,0.10553,112740.0,112730.0,0.85884]
[1761684503123,0.10553,112740.0,112730.0,0.7226]
[1761684503323,0.10553,112740.0,112730.0,0.8588]
[1761684504425,0.10553,112740.0,112730.0,0.7226]
[1761684504722,0.10553,112740.0,112730.0,0.8588]
[1761684505521,0.10553,112740.0,112730.0,0.7226]
[1761684505821,0.28264739,112740.0,112730.0,0.8588]
[1761684507316,0.45976478,112740.0,112730.0,0.7226]
[1761684507518,0.28264739,112740.0,112730.0,0.7226]
[1761684507716,0.45976478,112740.0,112730.0,0.8588]
[1761684507916,0.45976478,112740.0,112730.0,0.7226]
[1761684508115,0.28264739,112740.0,112730.0,0.8588]
[1761684509725,0.28264739,112740.0,112730.0,1.03591739]
[1761684511727,0.10553,112740.0,112730.0,0.8588]
[1761684520726,0.10553,112740.0,112730.0,1.13552982]
[1761684520727,0.04855,112740.0,112730.0,1.13552982]
[1761684520926,0.04855,112740.0,112730.0,1.82691872]
[1761684521123,0.04855,112740.0,112730.0,1.22691872]
[1761684522638,0.0161,112750.0,112740.0,0.36543082]
[1761684522830,0.0161,112750.0,112740.0,0.72891082]
[1761684523937,0.0451,112750.0,112740.0,0.73091082]
[1761684524337,0.029,112750.0,112740.0,0.73091082]
[1761684524541,0.0161,112760.0,112750.0,0.0886931]
[1761684524738,0.06833,112760.0,112750.0,0.77360982]
[1761684524938,0.06833,112760.0,112750.0,1.46230292]
[1761684525542,0.0415,112760.0,112750.0,1.46230292]
[1761684526147,0.0161,112760.0,112750.0,1.14171274]
[1761684526345,0.0161,112760.0,112750.0,0.86498292]
[1761684526642,0.0161,112760.0,112750.0,0.89798292]
[1761684527246,0.0161,112760.0,112750.0,1.17471274]
[1761684527445,0.01772,112770.0,112760.0,0.0886852]
[1761684527651,0.01772,112770.0,112760.0,0.72889502]
[1761684528046,0.01772,112770.0,112760.0,0.36348]
[1761684528243,0.01772,112770.0,112760.0,0.63752982]
[1761684528439,0.01772,112770.0,112760.0,0.4494852]
[1761684528643,0.01772,112770.0,112760.0,0.72621502]
[1761684529451,0.04312,112770.0,112760.0,1.50025512]
[1761684529643,0.04312,112770.0,112760.0,1.36421512]
[1761684529843,0.01772,112770.0,112760.0,1.2235253]
[1761684530151,0.06995,112770.0,112760.0,0.81156982]
[1761684530952,0.06995,112770.0,112760.0,0.90025502]
[1761684531150,0.06995,112770.0,112760.0,0.81156982]
[1761684531846,0.06995,112770.0,112760.0,0.88873868]
[1761684532051,0.06995,112770.0,112760.0,0.97742388]
[1761684533349,0.01772,112770.0,112760.0,0.97742388]
[1761684533753,0.01772,112770.0,112760.0,1.15705322]
[1761684536154,0.01772,112770.0,112760.0,1.15437322]
[1761684536959,0.01772,112770.0,112760.0,1.15705322]
[1761684538851,0.01772,112770.0,112760.0,1.75705322]
[1761684539154,0.01772,112770.0,112760.0,1.15705322]
[1761684539450,0.01555,112780.0,112770.0,0.0886774]
[1761684539644,0.01555,112780.0,112770.0,0.98300542]
[1761684540042,0.01555,112780.0,112770.0,0.80337608]
[1761684540240,0.01555,112780.0,112770.0,0.80605608]
[1761684541149,0.01555,112780.0,112770.0,0.80337608]
[1761684541357,0.01555,112790.0,112780.0,0.0886695]
[1761684541658,0.01555,112790.0,112780.0,1.11895752]
[1761684541954,0.01555,112790.0,112780.0,1.11627752]
[1761684542358,0.01555,112790.0,112780.0,1.11891752]
[1761684542746,0.01555,112790.0,112780.0,1.13791752]
[1761684544160,0.01555,112790.0,112780.0,1.13527752]
[1761684544359,0.01555,112790.0,112780.0,1.73791752]
[1761684544659,0.01555,112790.0,112780.0,1.13791752]
[1761684545261,0.01555,112810.0,112800.0,0.0886538]
[1761684545458,0.01555,112810.0,112800.0,1.47702182]
[1761684545658,0.01555,112810.0,112800.0,1.47966182]
[1761684546359,0.01555,112820.0,112810.0,0.0886461]
[1761684546565,0.01555,112820.0,112810.0,0.98293412]
[1761684546759,0.01555,112820.0,112810.0,0.98029412]
[1761684547155,0.06369,112820.0,112810.0,0.71469868]
[1761684547360,0.06369,112820.0,112810.0,0.53774934]
[1761684547560,0.06369,112820.0,112810.0,0.67366934]
[1761684547755,0.42022868,112820.0,112810.0,0.3608]
[1761684547957,0.06205,112810.0,112800.0,0.015]
[1761684548259,0.25155813,112810.0,112800.0,0.015]
[1761684548560,0.04723,112800.0,112780.0,0.3608]
[1761684548757,0.22390934,112790.0,112780.0,0.67362934]
[1761684549159,0.04696,112790.0,112780.0,0.67362934]
[1761684549465,0.22390934,112790.0,112780.0,0.67362934]
[1761684549663,0.04696,112790.0,112780.0,0.49668]
[1761684550056,0.04696,112790.0,112780.0,0.77316238]
[1761684550371,0.04696,112790.0,112780.0,0.79216238]
[1761684553760,0.04696,112790.0,112780.0,0.49668]
[1761684553954,0.06165,112790.0,112780.0,0.50668]
[1761684554971,0.06165,112790.0,112780.0,0.8773257]
[1761684556268,0.06165,112790.0,112780.0,0.50668]
[1761684557575,0.06165,112790.0,112780.0,0.8773257]
[1761684558168,0.01469,112790.0,112780.0,0.9659953]
[1761684558975,0.01469,112800.0,112790.0,0.0886618]
[1761684559162,0.01469,112800.0,112790.0,0.8227475]
[1761684560170,0.01469,112800.0,112790.0,0.8597475]
[1761684560372,0.01391,112810.0,112800.0,0.0886539]
[1761684560570,0.01391,112810.0,112800.0,0.5879339]
[1761684561766,0.01391,112810.0,112800.0,0.6199339]
[1761684561980,0.01555,112820.0,112810.0,0.088646]
[1761684562273,0.01555,112820.0,112810.0,0.8227317]
[1761684563381,0.01555,112820.0,112810.0,0.8327317]
[1761684563577,0.01555,112820.0,112810.0,0.99369902]
[1761684563782,0.0851198,112860.0,112830.0,0.0886289]
[1761684564086,0.01469,112840.0,112830.0,0.0886289]
[1761684564376,0.01469,112840.0,112830.0,0.9460289]
[1761684564683,0.06165,112840.0,112830.0,0.9460289]
[1761684564977,0.06165,112840.0,112830.0,0.8594]
[1761684565778,0.06165,112840.0,112830.0,0.8634]
[1761684566582,0.06165,112840.0,112830.0,0.87336773]
[1761684566882,0.06165,112840.0,112830.0,0.8634]
[1761684567482,0.06165,112840.0,112830.0,1.2340457]
[1761684568174,0.06165,112840.0,112830.0,1.243805]
[1761684569280,0.06165,112840.0,112830.0,1.3324354]
[1761684569479,0.03866,112840.0,112830.0,1.3324354]